{"text_format":"3","workbook":"xlsx","n_sheets":1,"sheets":["PRICE SCHEDULE"],"not_rendered":{"defined_names":2},"read":"whole","date_system":"1900"}

{"sheet":"PRICE SCHEDULE","index":0,"n_rows":55,"n_cols":7,"rows_kept":55,"merged":[[0,0,0,5],[1,0,1,5],[2,0,2,5],[3,0,3,1],[3,2,3,4],[4,0,4,1],[4,2,4,4],[5,0,5,5],[6,0,6,5],[7,0,8,5],[10,0,10,5],[19,0,19,5],[47,0,47,5],[50,2,50,4],[51,0,51,5],[52,0,52,5],[53,0,53,5]]}
["Arlington County Government"]
["ATTACHMENT A: PRICE SCHEDULE"]
[]
["NAME OF OFFEROR OR CONTRACTOR",null,"SOLICITATION NAME",null,null,"PAGE"]
[{"$nulls":5},1]
["SCOPE OF WORK"]
[]
["The Manufacturer shall design equipment to meet county specifications, furnish cabinets and components for intersection retrofits, provide technical support, and warranty for cabinets and components.  The County will install these cabinets at signalized intersections to operate the intersection more efficiently and in a safer manner. "]
[]
["ITEM NO.","SUPPLIES/SERVICES","EST QTY","UNIT","UNIT PRICE","AMOUNT"]
["Cabinets & Options"]
[1,"Cabinet A- 16 Channel 4 Door ATC Cabinet",50,"ea",null,{"$f":"IF(E12=\"\",\"\",(C12*(ROUND(E12,2))))","v":""}]
[2,"Cabinet B- 32 Channel 4 Door ATC Cabinet",2,"ea",null,""]
[3,"Cabinet C- 16 Channel 2 Door ATC Cabinet",20,"ea",null,""]
[4,"Cabinet D- 8 Channel 2 Door Temp Pole Mount Cabinet",2,"ea",null,""]
[5,"Black Exterior with Heat Shields Option for 4 Door Cabinets",10,"ea",null,""]
[6,"Black Exterior with Heat Shields Option for 2 Door Cabinets",1,"ea",null,""]
[7,"6\" H x 45\" W x 26\" D Cabinet Riser - ( 4 Door)",12,"ea",null,""]
[8,"6\" H x 24\" W x 30\" D Cabinet Riser - ( 2 Door)",12,"ea",null,""]
["Cabinet Components"]
[9,"Input Assembly",10,"ea",null,""]
[10,"Output Assembly",10,"ea",null,""]
[11,"Auxiliary Display Unit",10,"ea",null,""]
[12,"Field Ouput Termination Panel",10,"ea",null,""]
[13,"Auxiliary Input Termination Panel                 ",10,"ea",null,""]
[14,"Cabinet Power Supply",10,"ea",null,""]
[15,"Cabinet Service Assembly",10,"ea",null,""]
[16,"PDU Power Strip",10,"ea",null,""]
[17,"Cabinet Fan with mounting kit.",10,"ea",null,""]
[18,"Cabinet Thermostat",10,"ea",null,""]
[19,"Adjustable LED Lighting Fixture ( Above Door)",10,"ea",null,""]
[20,"LED Light Strip ( Side Rails)",10,"ea",null,""]
[21,"Serial Interface Unit",10,"ea",null,""]
[22,"CMUip-2212 Cabinet Monitor",10,"ea",null,""]
[23,"High Density Switch Pack",10,"ea",null,""]
[24,"Half Width 4 Channel Detector Card",10,"ea",null,""]
[25,"4 Channel Detector Card with LCD",10,"ea",null,""]
[26,"Pluggable Surge Arrestors ( Field Output )",10,"ea",null,""]
[27,"Pluggable Surge Arrestors ( Field Input )",10,"ea",null,""]
[28,"Monitor Key Programming Tool",10,"ea",null,""]
[29,"Monitor Key  ",10,"ea",null,""]
[30,"Transient Voltage Surge Supressor",10,"ea",null,""]
[31,"Flash Transfer Relay",10,"ea",null,""]
[32,"Rack Mount DC Isolator",10,"ea",null,""]
[33,"ATC Cabinet Conflict Monitor Tester",2,"ea",null,""]
[34,"ATC Cabinet High Density Switch Pack Tester",2,"ea",null,""]
[35,"Tester Case with pull-out handle and rolling wheels",2,"ea",null,""]
["Support Services"]
[36,"On Site Tech/ Turn On Support per hour",40,"hr",null,""]
[37,"Equipment Training per hour",40,"hr",null,""]
[null,null,"Grand Total",null,null,{"$f":"SUM(F47,F49:F50,F49,F21:F47,F12:F19)","v":{"v":0,"d":"$0.00"}}]
[]
[]
["NOTE: Every item of the Price Schedule must be completed or the proposal may be deemed non-conforming. \n\nTHE UNIT QUANTITIES ABOVE ARE ESTIMATED VALUES: This is a Fixed Unit-Price, Indefinite Quantity Contract and the quantities above are estimates only. The quantities may exceed or be less than the estimated amounts and will be determined upon actual services provided during the term of the contract. \n\nThe quantities are based on one year with the option for four renewals.\n\nCOMMENCEMENT, PROSECUTION AND COMPLETION OF WORKS: The Contractor shall be required to (a) commence work under this contract within 10 calendar days after the date the Contractor receives Notice to Proceed; (b) prosecute the work diligently; (c) complete all work ready for use not later than the number of days specified in the contract. \n\nREFERENCE TO DOCUMENTS: The Contractor shall refer to the special conditions, supplemental specifications, and minimum qualifications listed in the ITB. The section numbers under Reference column of this document are not all comprehensive and multiple sections of specifications and supplemental specifications may have to be consulted to complete a task. ",{"$nulls":5},1]
[{"$nulls":6},1]